fUSD/lending_fUSD_20260405
["ID","MTS","AMOUNT","RATE_DAILY","PERIOD"]
[419821003,1775398238855,-500.0,9.503e-05,2]
[419821004,1775398238865,-500.0,9.503e-05,2]
[419821005,1775398238874,-500.0,9.503e-05,2]
[419821006,1775398238884,-274172.4758377,9.523e-05,2]
[419821007,1775398238892,-150.0,9.6e-05,2]
[419821008,1775398238902,-1697.4,9.67e-05,2]
[419821009,1775398238912,-29999.99,9.67e-05,2]
[419821010,1775398238921,-1608.3186174,9.698e-05,2]
[419821011,1775398238930,-1500.0,9.698e-05,2]
[419821012,1775398238940,-166.66,9.771e-05,2]
[419821013,1775398238950,-4817.9468167,9.901e-05,2]
[419821014,1775398238959,-179.80643111,0.0001,2]
[419821015,1775398238968,-977.90061608,0.0001,2]
[419821016,1775398238978,-382.01312076,0.0001,2]
[419821017,1775398238987,-151.0,0.0001,2]
[419821018,1775398238996,-500.0,0.0001,2]
[419821019,1775398239005,-500.0,0.0001,2]
[419821020,1775398239015,-500.0,0.0001,2]
[419821021,1775398239024,-500.0,0.0001,2]
[419821022,1775398239033,-500.0,0.0001,2]
[419821023,1775398239043,-475.5204151,0.0001,2]
[419821024,1775398239053,-200.0,0.0001,2]
[419821025,1775398239062,-151.0,0.0001,2]
[419821026,1775398239071,-151.0,0.0001,2]
[419821027,1775398239081,-151.0,0.0001,2]
[419821028,1775398239090,-151.0,0.0001,2]
[419821029,1775398239099,-151.0,0.0001,2]
[419821030,1775398239108,-500.0,0.0001,2]
[419821031,1775398239118,-151.0,0.0001,2]
[419821032,1775398239127,-151.0,0.0001,2]
[419821033,1775398239137,-500.0,0.0001,2]
[419821034,1775398239146,-151.0,0.0001,2]
[419821035,1775398239155,-151.0,0.0001,2]
[419821036,1775398239164,-500.0,0.0001,2]
[419821037,1775398239174,-151.0,0.0001,2]
[419821038,1775398239183,-151.0,0.0001,2]
[419821039,1775398239192,-500.0,0.0001,2]
[419821040,1775398239201,-151.0,0.0001,2]
[419821041,1775398239211,-151.0,0.0001,2]
[419821042,1775398239220,-500.0,0.0001,2]
[419821043,1775398239230,-151.0,0.0001,2]
[419821044,1775398239239,-151.0,0.0001,2]
[419821045,1775398239249,-500.0,0.0001,2]
[419821046,1775398239258,-151.0,0.0001,2]
[419821047,1775398239267,-151.0,0.0001,2]
[419821048,1775398239277,-500.0,0.0001,2]
[419821049,1775398239286,-151.0,0.0001,2]
[419821050,1775398239296,-151.0,0.0001,2]
[419821051,1775398239305,-500.0,0.0001,2]
[419821052,1775398239315,-151.0,0.0001,2]
[419821053,1775398239324,-151.0,0.0001,2]
[419821054,1775398239334,-500.0,0.0001,2]
[419821055,1775398239344,-151.0,0.0001,2]
[419821056,1775398239353,-151.0,0.0001,2]
[419821057,1775398239363,-500.0,0.0001,2]
[419821058,1775398239373,-151.0,0.0001,2]
[419821059,1775398239382,-151.0,0.0001,2]
[419821060,1775398239392,-500.0,0.0001,2]
[419821061,1775398239401,-151.0,0.0001,2]
[419821062,1775398239411,-151.0,0.0001,2]
[419821063,1775398239420,-151.0,0.0001,2]
[419821064,1775398239430,-151.0,0.0001,2]
[419821065,1775398239439,-151.0,0.0001,2]
[419821066,1775398239450,-151.0,0.0001,2]
[419821067,1775398239460,-1386.78395259,0.0001,2]
[419821068,1775398239469,-151.0,0.0001,2]
[419821069,1775398239479,-9136.91222219,0.0001,2]
[419821070,1775398239489,-348.59863987,0.0001,2]
[419821071,1775398239498,-1918.65220609,0.0001,2]
[419821072,1775398239508,-1918.65220609,0.0001,2]
[419821073,1775398239517,-1000.0,0.00010051,2]
[419821074,1775398239527,-891.29868191,0.00010051,2]
[419821075,1775398239536,-1000.0,0.00010051,2]
[419821076,1775398239545,-166.66,0.00010056,2]
[419821077,1775398239554,-2000.0,0.00010246,2]
[419821079,1775398239563,-587.0,0.00010408,2]
[419821080,1775398239573,-274172.4758377,0.00010423,2]
[419821081,1775398239582,-2351.0,0.00010431,2]
[419821082,1775398239591,-500.0,0.00010473,2]
[419821083,1775398239600,-500.0,0.00010473,2]
[419821084,1775398239609,-500.13692831,0.00010473,2]
[419821085,1775398239618,-1600.0,0.00010475,2]
[419821086,1775398239628,-200.0,0.00010548,2]
[419821087,1775398239637,-1438.09495884,0.00010548,2]
[419821088,1775398239647,-1500.0,0.00010598,2]
[419821089,1775398239656,-1500.0,0.00010598,2]
[419821090,1775398239666,-600.0,0.00010672,2]
[419821091,1775398239675,-340.29,0.00010672,2]
[419821092,1775398239684,-1994900.58881044,0.000107,2]
[419821093,1775398239757,-678.69,0.000107,2]
[419821095,1775398239829,-143849.34496139,0.000107,2]
[419821098,1775398240507,-757829.24105851,0.000107,2]
[419821099,1775398240517,-385.3,0.00010713,2]
[419821100,1775398240526,-2500.0,0.00010794,2]
[419821101,1775398240536,-10286.07240035,0.000109,2]
[419821102,1775398240546,-10286.0724003,0.000109,2]
[419821103,1775398240555,-10286.0724003,0.000109,2]
[419821104,1775398240565,-500.0,0.00010959,2]
[419821105,1775398240575,-1561.16,0.00010959,2]
[419821106,1775398240584,-169.6722,0.00011,2]
[419821107,1775398240595,-2604.59251375,0.00011,2]
[419821108,1775398240605,-1000.0,0.00011021,2]
[419821109,1775398240615,-1000.0,0.00011021,2]
[419821110,1775398240624,-200.0,0.00011096,2]
[419821111,1775398240634,-1491.30447232,0.00011096,2]
[419821112,1775398240643,-2662.5,0.00011099,2]
[419821113,1775398240652,-2662.5,0.00011099,2]
[419821114,1775398240662,-2662.5,0.00011099,2]
[419821115,1775398240671,-2662.5,0.00011099,2]
[419821116,1775398240681,-2662.5,0.00011099,2]
[419821117,1775398240690,-72823.15065876,0.00011099,2]
[419821118,1775398240700,-72823.1506587,0.00011099,2]
[419821119,1775398240709,-72823.1506587,0.00011099,2]
[419821120,1775398240719,-72823.1506587,0.00011099,2]
[419821121,1775398240728,-72823.1506587,0.00011099,2]
[419821122,1775398240737,-72823.1506587,0.00011099,2]
[419821123,1775398240747,-72823.1506587,0.00011099,2]
[419821124,1775398240757,-72823.1506587,0.00011099,2]
[419821125,1775398240766,-72823.1506587,0.00011099,2]
[419821126,1775398240776,-72823.1506587,0.00011099,2]
[419821127,1775398240786,-2013.22099072,0.00011146,2]
[419821128,1775398240795,-2000.0,0.00011146,2]
[419821129,1775398240805,-4817.9468167,0.0001118,2]
[419821130,1775398240814,-977.90061607,0.00011227,2]
[419821131,1775398240823,-1918.65220609,0.00011312,2]
[419821132,1775398240833,-274172.4758377,0.00011322,2]
[419821133,1775398240843,-3000.0,0.00011342,2]
[419821134,1775398240852,-250.0,0.00011393,2]
[419821135,1775398240862,-823.0,0.00011449,2]
[419821136,1775398240872,-3292.0,0.00011475,2]
[419821137,1775398240881,-4669.26,0.00011507,2]
[419821138,1775398240891,-1600.0,0.00011523,2]
[419821139,1775398240900,-1500.0,0.00011568,2]
[419821140,1775398240910,-1500.0,0.00011568,2]
[419821141,1775398240919,-10286.0724003,0.00011642,2]
[419821142,1775398240928,-200.0,0.00011644,2]
[419821143,1775398240937,-1546.48273779,0.00011644,2]
[419821144,1775398240946,-1155.89530512,0.00011684,2]
[419821145,1775398240955,-2500.0,0.00011694,2]
[419821146,1775398240964,-4299.570977,0.00011874,2]
[419821147,1775398240974,-3500.0,0.0001189,2]
[419821148,1775398240983,-7173.65496,0.00011997,2]
[419821150,1775398240992,-2000.0,0.00012116,2]
[419821152,1775398241001,-1508.06532933,0.00012116,2]
[419821154,1775398241010,-10891.57,0.00012141,2]
[419821156,1775398241019,-200.0,0.00012192,2]
[419821158,1775398241029,-1603.70259909,0.00012192,2]
[419821160,1775398241038,-14036.26116846,0.00012212,2]
[419821164,1775398241331,-844.767744,0.00012235,2]
[419821165,1775398241342,-1070.46695611,0.00012242,2]
[419821166,1775398241351,-1115.0,0.00012299,2]
[419821167,1775398241360,-191.9243,0.000124,2]
[419821168,1775398241369,-2971.62275228,0.00012438,2]
[419821169,1775398241378,-4817.9468167,0.00012458,2]
[419821170,1775398241387,-7557.985273,0.00012485,2]
[419821171,1775398241396,-309.90283068,0.000125,2]
[419821172,1775398241407,-1600.0,0.0001257,2]
[419821173,1775398241418,-1152.0,0.00012594,2]
[419821174,1775398241427,-4609.0,0.00012622,2]
[419821175,1775398241436,-150.0,0.00012622,2]
[419821176,1775398241446,-341.5818023,0.00012664,2]
[419821177,1775398241455,-10286.0724003,0.00012682,2]
[419821178,1775398241464,-4518.955199,0.00012727,2]
[419821179,1775398241474,-174.60324019,0.00012739,2]
[419821180,1775398241483,-2885.724218,0.00012739,2]
[419821181,1775398241492,-200.0,0.0001274,2]
[419821182,1775398241501,-1663.03959526,0.0001274,2]
[419821183,1775398241510,-2981.48418188,0.00012788,2]
[419821184,1775398241521,-496.91403031,0.00012903,2]
[419821185,1775398241532,-1115.0,0.00012946,2]
[419821186,1775398241543,-973.60603576,0.00012987,2]
[419821187,1775398241553,-6370.97154076,0.00012987,2]
[419821188,1775398241563,-561.88244435,0.00012987,2]
[419821189,1775398241572,-323.78914395,0.00012987,2]
[419821190,1775398241581,-3329.34053953,0.00012987,2]
[419821191,1775398241591,-165.7991457,0.00012987,2]
[419821192,1775398241600,-650.31575851,0.00012987,2]
[419821193,1775398241609,-1547.83620172,0.00012987,2]
[419821194,1775398241619,-833.19612165,0.00012987,2]
[419821195,1775398241628,-340.07906113,0.00012987,2]
[419821196,1775398241637,-192.20489481,0.00012987,2]
[419821197,1775398241647,-182.26938929,0.00012987,2]
[419821198,1775398241656,-263.71177613,0.00012987,2]
[419821199,1775398241667,-84914.69579609,0.00012999,2]
[419821200,1775398241676,-5651.24226969,0.00013,2]
[419821201,1775398241687,-300.0,0.00013,2]
[419821202,1775398241696,-223458.98806615,0.00013,7]
[419821203,1775398241706,-1811.5322899,0.00013,15]
[419821204,1775398241715,-250.0,0.00013,2]
[419821205,1775398241725,-496.91403031,0.0001303,2]
[419821206,1775398241734,-5390.67222516,0.0001305,2]
[419821207,1775398241744,-503.0,0.00013111,2]
[419821208,1775398241753,-496.91403031,0.00013158,2]
[419821209,1775398241763,-1916.0325596,0.0001326,2]
[419821210,1775398241773,-12168.97318358,0.0001326,2]
[419821211,1775398241782,-1348.66310216,0.0001326,2]
[419821212,1775398241792,-731.05796055,0.0001326,2]
[419821213,1775398241802,-6119.64043707,0.0001326,2]
[419821214,1775398241812,-361.62440655,0.0001326,2]
[419821215,1775398241821,-1065.95917231,0.0001326,2]
[419821216,1775398241831,-2497.06245294,0.0001326,2]
[419821217,1775398241841,-1285.41046619,0.0001326,2]
[419821218,1775398241852,-703.53623844,0.0001326,2]
[419821219,1775398241862,-536.87266236,0.0001326,2]
[419821220,1775398241872,-364.53877859,0.0001326,2]
[419821221,1775398241882,-200.0,0.00013288,2]
[419821222,1775398241891,-1453.30363319,0.00013288,2]
[419821223,1775398241901,-1000.0,0.000135,2]
[419821224,1775398241911,-1115.0,0.00013628,2]
[419821225,1775398241920,-596.0,0.00013695,2]
[419821226,1775398241932,-500.0,0.00013698,2]
[419821227,1775398241942,-500.0,0.00013698,2]
[419821228,1775398241951,-500.0,0.00013698,2]
[419821229,1775398241960,-500.0,0.00013698,2]
[419821230,1775398241970,-500.0,0.00013698,2]
[419821231,1775398241980,-500.0,0.00013698,2]
[419821232,1775398241990,-500.0,0.00013698,2]
[419821233,1775398242003,-183.58723642,0.00013698,2]
[419821234,1775398242013,-1249.03,0.00013698,2]
[419821235,1775398242023,-1249.03,0.00013698,2]
[419821236,1775398242033,-1249.03,0.00013698,2]
[419821237,1775398242043,-1249.03,0.00013698,2]
[419821238,1775398242054,-1249.03,0.00013698,2]
[419821239,1775398242063,-1249.03,0.00013698,2]
[419821240,1775398242073,-1249.03,0.00013698,2]
[419821241,1775398242292,-1249.03,0.00013698,2]
[419821242,1775398242302,-1249.03,0.00013698,2]
[419821243,1775398242312,-1249.03,0.00013698,2]
[419821244,1775398242322,-1249.03,0.00013698,2]
[419821245,1775398242332,-1249.03,0.00013698,2]
[419821246,1775398242343,-1249.03,0.00013698,2]
[419821247,1775398242353,-1249.03,0.00013698,2]
[419821249,1775398242363,-1249.03,0.00013698,2]
[419821250,1775398242374,-1249.03,0.00013698,2]
[419821251,1775398242384,-1772.17,0.00013698,2]
[419821252,1775398242393,-1249.03,0.00013698,2]
[419821253,1775398242403,-1772.17,0.00013698,2]
[419821254,1775398242412,-1249.03,0.00013698,2]
[419821255,1775398242421,-1772.17,0.00013698,2]
[419821256,1775398242431,-1249.03,0.00013698,2]
[419821258,1775398242440,-1772.17,0.00013698,2]
[419821260,1775398242450,-1772.17,0.00013698,2]
[419821261,1775398242460,-1772.17,0.00013698,2]
[419821262,1775398242469,-1772.17,0.00013698,2]
[419821263,1775398242479,-1772.17,0.00013698,2]
[419821264,1775398242488,-1772.17,0.00013698,2]
[419821265,1775398242498,-1772.17,0.00013698,2]
[419821266,1775398242508,-1772.17,0.00013698,2]
[419821267,1775398242517,-1772.17,0.00013698,2]
[419821268,1775398242527,-1772.17,0.00013698,2]
[419821269,1775398242537,-1772.17,0.00013698,2]
[419821270,1775398242547,-1772.17,0.00013698,2]
[419821271,1775398242557,-1772.17,0.00013698,2]
[419821272,1775398242567,-1772.17,0.00013698,2]
[419821273,1775398242576,-1122.33,0.00013698,2]
[419821274,1775398242585,-1122.33,0.00013698,2]
[419821275,1775398242595,-1122.33,0.00013698,2]
[419821276,1775398242604,-1122.33,0.00013698,2]
[419821277,1775398242614,-1122.33,0.00013698,2]
[419821278,1775398242623,-1122.33,0.00013698,2]
[419821279,1775398242632,-1122.33,0.00013698,2]
[419821280,1775398242642,-1122.33,0.00013698,2]
[419821281,1775398242651,-1122.33,0.00013698,2]
[419821282,1775398242660,-1122.33,0.00013698,2]
[419821283,1775398242670,-1122.33,0.00013698,2]
[419821284,1775398242680,-1122.33,0.00013698,2]
[419821285,1775398242689,-1122.33,0.00013698,2]
[419821286,1775398242698,-1122.33,0.00013698,2]
[419821287,1775398242708,-1122.33,0.00013698,2]
[419821288,1775398242718,-1122.33,0.00013698,2]
[419821289,1775398242727,-1122.33,0.00013698,2]
[419821290,1775398242737,-1122.33,0.00013698,2]
[419821291,1775398242747,-1122.33,0.00013698,2]
[419821292,1775398242757,-500.0,0.00013698,2]
[419821293,1775398242766,-504.35317897,0.00013698,2]
[419821294,1775398242776,-500.0,0.00013698,2]
[419821295,1775398242786,-500.0,0.00013698,2]
[419821296,1775398242795,-500.0,0.00013698,2]
[419821297,1775398242804,-500.0,0.00013698,2]
[419821298,1775398242813,-500.0,0.00013698,2]
[419821299,1775398242823,-500.0,0.00013698,2]
[419821300,1775398242833,-500.0,0.00013698,2]
[419821301,1775398242843,-564.47521126,0.00013698,2]
[419821302,1775398242852,-806.66,0.00013698,2]
[419821303,1775398242862,-806.66,0.00013698,2]
[419821304,1775398242871,-806.66,0.00013698,2]
[419821305,1775398242882,-806.66,0.00013698,2]
[419821306,1775398242892,-806.66,0.00013698,2]
[419821307,1775398242902,-806.66,0.00013698,2]
[419821308,1775398242918,-806.66,0.00013698,2]
[419821309,1775398242928,-806.66,0.00013698,2]
[419821310,1775398242937,-806.66,0.00013698,2]
[419821311,1775398242947,-806.66,0.00013698,2]
[419821312,1775398242956,-806.66,0.00013698,2]
[419821313,1775398242965,-806.66,0.00013698,2]
[419821314,1775398242975,-806.66,0.00013698,2]
[419821315,1775398242984,-806.66,0.00013698,2]
[419821316,1775398242993,-806.66,0.00013698,2]
[419821317,1775398243003,-806.66,0.00013698,2]
[419821318,1775398243012,-806.66,0.00013698,2]
[419821319,1775398243022,-500.0,0.00013698,2]
[419821320,1775398243031,-500.0,0.00013698,2]
[419821321,1775398243042,-500.0,0.00013698,2]
[419821322,1775398243053,-500.0,0.00013698,2]
[419821323,1775398243062,-500.0,0.00013698,2]
[419821324,1775398243072,-500.0,0.00013698,2]
[419821325,1775398243082,-500.0,0.00013698,2]
[419821326,1775398243092,-500.0,0.00013698,2]
[419821327,1775398243102,-184.01671123,0.00013698,2]
[419821328,1775398243111,-1268.28,0.00013698,2]
[419821329,1775398243121,-1268.28,0.00013698,2]
[419821330,1775398243131,-1268.28,0.00013698,2]
[419821331,1775398243140,-1268.28,0.00013698,2]
[419821332,1775398243150,-1268.28,0.00013698,2]
[419821333,1775398243160,-1268.28,0.00013698,2]
[419821334,1775398243176,-1268.28,0.00013698,2]
[419821335,1775398243187,-1268.28,0.00013698,2]
[419821336,1775398243197,-1268.28,0.00013698,2]
[419821337,1775398243207,-1268.28,0.00013698,2]
[419821338,1775398243218,-1268.28,0.00013698,2]
[419821339,1775398243227,-1268.28,0.00013698,2]
[419821340,1775398243237,-1268.28,0.00013698,2]
[419821341,1775398243248,-1268.28,0.00013698,2]
[419821342,1775398243258,-1268.28,0.00013698,2]
[419821343,1775398243269,-1268.28,0.00013698,2]
[419821344,1775398243280,-1268.28,0.00013698,2]
[419821345,1775398243291,-673.65,0.00013698,2]
[419821346,1775398243301,-673.65,0.00013698,2]
[419821347,1775398243312,-673.65,0.00013698,2]
[419821348,1775398243322,-673.65,0.00013698,2]
[419821349,1775398243333,-673.65,0.00013698,2]
[419821350,1775398243343,-673.65,0.00013698,2]
[419821351,1775398243353,-673.65,0.00013698,2]
[419821352,1775398243363,-673.65,0.00013698,2]
[419821353,1775398243373,-673.65,0.00013698,2]
[419821354,1775398243384,-673.65,0.00013698,2]
[419821355,1775398243394,-673.65,0.00013698,2]
[419821356,1775398243405,-673.65,0.00013698,2]
[419821357,1775398243415,-673.65,0.00013698,2]
[419821358,1775398243425,-673.65,0.00013698,2]
[419821359,1775398243435,-673.65,0.00013698,2]
[419821360,1775398243445,-673.65,0.00013698,2]
[419821361,1775398243455,-673.65,0.00013698,2]
[419821362,1775398243466,-673.65,0.00013698,2]
[419821363,1775398243476,-673.65,0.00013698,2]
[419821364,1775398243486,-500.0,0.00013698,2]
[419821365,1775398243497,-500.0,0.00013698,2]
[419821366,1775398243507,-500.0,0.00013698,2]
[419821367,1775398243519,-500.0,0.00013698,2]
[419821368,1775398243529,-500.0,0.00013698,2]
[419821369,1775398243539,-500.0,0.00013698,2]
[419821370,1775398243549,-276.79569788,0.00013698,2]
[419821371,1775398243560,-588.99,0.00013698,2]
[419821372,1775398243570,-588.99,0.00013698,2]
[419821373,1775398243580,-588.99,0.00013698,2]
[419821374,1775398243590,-588.99,0.00013698,2]
[419821375,1775398243601,-588.99,0.00013698,2]
[419821376,1775398243612,-588.99,0.00013698,2]
[419821377,1775398243622,-588.99,0.00013698,2]
[419821378,1775398243633,-588.99,0.00013698,2]
[419821379,1775398243644,-588.99,0.00013698,2]
[419821380,1775398243654,-588.99,0.00013698,2]
[419821381,1775398243664,-588.99,0.00013698,2]
[419821382,1775398243675,-588.99,0.00013698,2]
[419821383,1775398243689,-588.99,0.00013698,2]
[419821384,1775398243700,-588.99,0.00013698,2]
[419821385,1775398243710,-588.99,0.00013698,2]
[419821386,1775398243721,-588.99,0.00013698,2]
[419821387,1775398243732,-588.99,0.00013698,2]
[419821388,1775398243742,-588.99,0.00013698,2]
[419821389,1775398243753,-588.99,0.00013698,2]
[419821390,1775398243764,-969.24,0.00013698,2]
[419821391,1775398243774,-969.24,0.00013698,2]
[419821392,1775398243785,-969.24,0.00013698,2]
[419821393,1775398243796,-969.24,0.00013698,2]
[419821394,1775398243806,-969.24,0.00013698,2]
[419821395,1775398243817,-969.24,0.00013698,2]
[419821396,1775398243827,-969.24,0.00013698,2]
[419821397,1775398243838,-969.24,0.00013698,2]
[419821398,1775398243849,-969.24,0.00013698,2]
[419821399,1775398243859,-969.24,0.00013698,2]
[419821400,1775398243870,-969.24,0.00013698,2]
[419821401,1775398243880,-969.24,0.00013698,2]
[419821402,1775398243891,-969.24,0.00013698,2]
[419821403,1775398243902,-969.24,0.00013698,2]
[419821404,1775398243912,-969.24,0.00013698,2]
[419821405,1775398243923,-969.24,0.00013698,2]
[419821406,1775398243933,-969.24,0.00013698,2]
[419821407,1775398243943,-969.24,0.00013698,2]
[419821408,1775398243954,-969.24,0.00013698,2]
[419821409,1775398243964,-1233.74,0.00013698,2]
[419821410,1775398243975,-1233.74,0.00013698,2]
[419821411,1775398243985,-1233.74,0.00013698,2]
[419821412,1775398243995,-1233.74,0.00013698,2]
[419821413,1775398244005,-1233.74,0.00013698,2]
[419821414,1775398244015,-1233.74,0.00013698,2]
[419821415,1775398244025,-1233.74,0.00013698,2]
[419821416,1775398244036,-1233.74,0.00013698,2]
[419821417,1775398244047,-1233.74,0.00013698,2]
[419821418,1775398244058,-1233.74,0.00013698,2]
[419821419,1775398244068,-1233.74,0.00013698,2]
[419821420,1775398244079,-1233.74,0.00013698,2]
[419821421,1775398244089,-1233.74,0.00013698,2]
[419821422,1775398244100,-1233.74,0.00013698,2]
[419821423,1775398244110,-1233.74,0.00013698,2]
[419821424,1775398244120,-1233.74,0.00013698,2]
[419821425,1775398244133,-1233.74,0.00013698,2]
[419821426,1775398244143,-1233.74,0.00013698,2]
[419821427,1775398244155,-1233.74,0.00013698,2]
[419821428,1775398244165,-813.55,0.00013698,2]
[419821429,1775398244175,-813.55,0.00013698,2]
[419821430,1775398244185,-813.55,0.00013698,2]
[419821431,1775398244197,-813.55,0.00013698,2]
[419821432,1775398244207,-813.55,0.00013698,2]
[419821433,1775398244217,-813.55,0.00013698,2]
[419821434,1775398244227,-813.55,0.00013698,2]
[419821435,1775398244237,-813.55,0.00013698,2]
[419821436,1775398244248,-813.55,0.00013698,2]
[419821437,1775398244258,-813.55,0.00013698,2]
[419821438,1775398244268,-813.55,0.00013698,2]
[419821439,1775398244278,-813.55,0.00013698,2]
[419821440,1775398244287,-813.55,0.00013698,2]
[419821441,1775398244297,-813.55,0.00013698,2]
[419821442,1775398244307,-813.55,0.00013698,2]
[419821443,1775398244318,-813.55,0.00013698,2]
[419821444,1775398244327,-813.55,0.00013698,2]
[419821445,1775398244338,-813.55,0.00013698,2]
[419821446,1775398244347,-813.55,0.00013698,2]
[419821447,1775398244357,-537.2,0.00013698,2]
[419821448,1775398244367,-537.2,0.00013698,2]
[419821449,1775398244376,-537.2,0.00013698,2]
[419821450,1775398244387,-537.2,0.00013698,2]
[419821451,1775398244396,-500.0,0.00013698,2]
[419821452,1775398244406,-537.2,0.00013698,2]
[419821453,1775398244416,-537.2,0.00013698,2]
[419821454,1775398244426,-520.65331997,0.00013698,2]
[419821455,1775398244435,-537.2,0.00013698,2]
[419821456,1775398244445,-537.2,0.00013698,2]
[419821457,1775398244455,-537.2,0.00013698,2]
[419821458,1775398244464,-537.2,0.00013698,2]
[419821459,1775398244475,-537.2,0.00013698,2]
[419821460,1775398244484,-537.2,0.00013698,2]
[419821461,1775398244494,-537.2,0.00013698,2]
[419821462,1775398244505,-537.2,0.00013698,2]
[419821463,1775398244515,-537.2,0.00013698,2]
[419821464,1775398244524,-537.2,0.00013698,2]
[419821465,1775398244535,-537.2,0.00013698,2]
[419821466,1775398244544,-537.2,0.00013698,2]
[419821467,1775398244554,-537.2,0.00013698,2]
[419821468,1775398244564,-500.0,0.00013698,2]
[419821469,1775398244574,-500.0,0.00013698,2]
[419821470,1775398244584,-500.0,0.00013698,2]
[419821471,1775398244594,-500.0,0.00013698,2]
[419821472,1775398244603,-500.0,0.00013698,2]
[419821473,1775398244613,-500.0,0.00013698,2]
[419821474,1775398244623,-500.0,0.00013698,2]
[419821475,1775398244633,-500.0,0.00013698,2]
[419821476,1775398244643,-500.0,0.00013698,2]
[419821477,1775398244653,-500.0,0.00013698,2]
[419821478,1775398244663,-500.0,0.00013698,2]
[419821479,1775398244672,-500.0,0.00013698,2]
[419821480,1775398244683,-500.0,0.00013698,2]
[419821481,1775398244692,-500.0,0.00013698,2]
[419821482,1775398244702,-481.06713155,0.00013698,2]
[419821483,1775398244712,-500.0,0.00013698,2]
[419821484,1775398244722,-500.0,0.00013698,2]
[419821485,1775398244731,-500.0,0.00013698,2]
[419821486,1775398244742,-500.0,0.00013698,2]
[419821487,1775398244751,-500.0,0.00013698,2]
[419821488,1775398244761,-500.0,0.00013698,2]
[419821489,1775398244771,-500.0,0.00013698,2]
[419821490,1775398244781,-531.81791081,0.00013698,2]
[419821491,1775398244790,-500.0,0.00013698,2]
[419821492,1775398244800,-500.0,0.00013698,2]
[419821493,1775398244810,-500.0,0.00013698,2]
[419821494,1775398244820,-500.0,0.00013698,2]
[419821495,1775398244829,-500.0,0.00013698,2]
[419821496,1775398244839,-500.0,0.00013698,2]
[419821497,1775398244849,-500.0,0.00013698,2]
[419821498,1775398244859,-500.0,0.00013698,2]
[419821499,1775398244869,-500.0,0.00013698,2]
[419821500,1775398244879,-500.0,0.00013698,2]
[419821501,1775398244889,-500.0,0.00013698,2]
[419821502,1775398244899,-500.0,0.00013698,2]
[419821503,1775398244910,-500.0,0.00013698,2]
[419821504,1775398244920,-500.0,0.00013698,2]
[419821505,1775398244931,-500.0,0.00013698,2]
[419821506,1775398244942,-500.0,0.00013698,2]
[419821507,1775398244952,-390.77484076,0.00013698,2]
[419821508,1775398244963,-500.0,0.00013698,2]
[419821509,1775398244973,-500.0,0.00013698,2]
[419821510,1775398244984,-500.0,0.00013698,2]
[419821511,1775398244994,-500.0,0.00013698,2]
[419821512,1775398245006,-500.0,0.00013698,2]
[419821513,1775398245019,-500.0,0.00013698,2]
[419821514,1775398245029,-500.0,0.00013698,2]
[419821515,1775398245040,-500.0,0.00013698,2]
[419821516,1775398245051,-500.0,0.00013698,2]
[419821517,1775398245061,-500.0,0.00013698,2]
[419821518,1775398245071,-500.0,0.00013698,2]